bitfinex/quotes_SOLUSD_20230116
["timestamp","ask_amount","ask_price","bid_price","bid_amount"]
[1673839856617,32.02,23.433,23.416,17.0]
[1673839856829,20.0,23.432,23.416,17.0]
[1673839857044,32.02,23.431,23.416,17.0]
[1673839857364,32.02,23.437,23.416,17.0]
[1673839857772,20.0,23.436,23.416,17.0]
[1673839857981,32.02,23.435,23.416,17.0]
[1673839862304,16.57,23.45,23.42,16.4]
[1673839862497,20.0,23.446,23.421,37.39]
[1673839862708,20.0,23.449,23.422,146.9975]
[1673839862945,20.0,23.449,23.423,37.39]
[1673839863127,32.0,23.448,23.424,17.0]
[1673839863347,20.0,23.447,23.43,16.57]
[1673839863553,32.0,23.448,23.432,20.0]
[1673839863784,20.0,23.447,23.432,20.0]
[1673839864093,20.0,23.447,23.433,17.0]
[1673839864287,20.0,23.45,23.433,17.0]
[1673839864606,32.0,23.449,23.433,17.0]
[1673839864817,20.0,23.448,23.433,17.0]
[1673839865239,20.0,23.45,23.433,17.0]
[1673839866292,32.0,23.451,23.434,20.0]
[1673839866508,64.0,23.452,23.436,20.0]
[1673839866942,64.0,23.452,23.438,20.0]
[1673839867138,64.0,23.452,23.439,17.0]
[1673839868612,64.0,23.452,23.437,17.0]
[1673839869236,64.0,23.452,23.432,20.0]
[1673839869468,32.0,23.451,23.434,20.0]
[1673839869673,64.0,23.452,23.433,20.0]
[1673839870094,64.0,23.452,23.434,17.16]
[1673839870414,64.0,23.452,23.436,20.0]
[1673839870728,54.0,23.452,23.437,17.0]
[1673839873457,54.0,23.452,23.435,20.0]
[1673839873868,94.93630874,23.452,23.433,20.0]
[1673839874198,50.01620464,23.451,23.429,37.21]
[1673839874406,32.0,23.45,23.429,20.0]
[1673839874597,78.82029074,23.45,23.429,20.0]
[1673839874807,66.82029074,23.449,23.429,20.0]
[1673839875018,32.0,23.448,23.429,20.0]
[1673839875249,20.0,23.447,23.429,20.0]
[1673839875447,20.0,23.447,23.432,17.0]
[1673839875875,20.0,23.45,23.432,17.0]
[1673839876201,32.0,23.449,23.432,17.0]
[1673839876409,20.0,23.448,23.432,17.0]
[1673839877043,20.0,23.45,23.432,17.0]
[1673839877252,32.0,23.449,23.432,17.0]
[1673839877469,20.0,23.448,23.433,20.0]
[1673839877678,20.0,23.448,23.434,17.0]
[1673839878100,20.0,23.448,23.435,20.0]
[1673839878314,20.0,23.45,23.435,20.0]
[1673839878517,32.0,23.449,23.427,37.21]
[1673839878741,16.43,23.44,23.426,110.3008]
[1673839878936,52.01,23.439,23.426,110.3008]
[1673839879357,98.56600681,23.439,23.417,20.0]
[1673839879585,46.55600681,23.438,23.417,20.0]
[1673839879770,52.02,23.437,23.417,20.0]
[1673839880208,17.0,23.436,23.417,20.0]
[1673839880425,32.02,23.435,23.417,20.0]
[1673839880740,37.0,23.434,23.416,111.7793]
[1673839881059,32.02,23.433,23.416,111.7793]
[1673839881369,37.0,23.432,23.413,116.2264]
[1673839881557,16.57,23.43,23.413,116.2264]
[1673839881774,69.03,23.429,23.413,116.2264]
[1673839882626,52.03,23.429,23.413,116.2264]
[1673839883245,52.03,23.429,23.414,20.0]
[1673839883778,20.0,23.429,23.414,20.0]
[1673839883988,20.0,23.429,23.416,20.0]
[1673839884201,20.0,23.438,23.416,20.0]
[1673839884404,32.02,23.437,23.416,20.0]
[1673839884726,20.0,23.436,23.416,20.0]
[1673839884927,32.02,23.435,23.417,17.0]
[1673839885459,20.0,23.434,23.417,17.0]
[1673839885669,32.02,23.433,23.417,17.0]
[1673839885861,32.01,23.439,23.418,20.0]
[1673839886077,20.0,23.438,23.42,20.0]
[1673839886411,32.02,23.437,23.421,17.0]
[1673839886720,32.01,23.439,23.421,17.0]
[1673839887131,32.01,23.439,23.422,20.0]
[1673839887343,32.01,23.439,23.423,17.0]
[1673839887771,20.0,23.438,23.423,17.0]
[1673839887964,20.0,23.438,23.424,20.0]
[1673839888187,32.0,23.445,23.426,20.0]
[1673839888422,32.0,23.446,23.427,17.0]
[1673839888732,32.0,23.446,23.428,20.0]
[1673839888923,32.0,23.446,23.429,17.0]
[1673839889761,32.0,23.449,23.429,17.0]
[1673839889992,37.0,23.448,23.429,17.0]
[1673839890204,32.0,23.447,23.429,17.0]
[1673839890408,20.0,23.446,23.429,17.0]
[1673839890613,32.0,23.445,23.429,17.0]
[1673839892603,32.0,23.445,23.43,20.0]
[1673839894393,32.0,23.445,23.431,17.0]
[1673839897870,32.0,23.445,23.432,20.0]
[1673839898087,20.0,23.446,23.433,17.0]
[1673839898398,20.0,23.448,23.433,17.0]
[1673839898605,32.0,23.451,23.434,20.0]
[1673839898801,31.99,23.459,23.435,17.0]
[1673839899015,31.99,23.459,23.436,20.0]
[1673839899227,31.99,23.459,23.438,20.0]
[1673839899542,31.99,23.459,23.439,17.0]
[1673839902711,31.98,23.463,23.44,17.15]
[1673839902903,31.98,23.463,23.442,20.0]
[1673839903129,31.98,23.463,23.443,17.0]
[1673839904405,31.98,23.463,23.444,20.0]
[1673839904606,31.98,23.463,23.445,17.0]
[1673839904929,31.97,23.469,23.445,17.0]
[1673839905121,48.1072,23.452,23.445,17.0]
[1673839906286,31.97,23.469,23.446,20.0]
[1673839906494,20.0,23.468,23.448,20.0]
[1673839906722,31.97,23.467,23.448,20.0]
[1673839906921,31.97,23.467,23.449,17.0]
[1673839907331,31.97,23.474,23.449,17.0]
[1673839907962,20.0,23.474,23.449,17.0]
[1673839908173,31.97,23.473,23.449,17.0]
[1673839908820,20.0,23.472,23.449,17.0]
[1673839909028,31.97,23.471,23.449,17.0]
[1673839909238,20.0,23.47,23.449,17.0]
[1673839909449,31.97,23.469,23.449,17.0]
[1673839909766,20.0,23.468,23.449,17.0]
[1673839909965,31.97,23.467,23.449,17.0]
[1673839910176,20.0,23.466,23.449,17.0]
[1673839910613,20.0,23.466,23.45,16.4]
[1673839910801,20.0,23.474,23.452,20.0]
[1673839911126,31.97,23.473,23.453,17.0]
[1673839911340,20.0,23.472,23.453,17.0]
[1673839911554,31.97,23.471,23.453,17.0]
[1673839911864,20.0,23.47,23.453,17.0]
[1673839912075,31.97,23.469,23.453,17.0]
[1673839912301,20.0,23.468,23.453,17.0]
[1673839912691,20.0,23.473,23.453,17.0]
[1673839913006,31.97,23.472,23.453,17.0]
[1673839913216,20.0,23.471,23.453,17.0]
[1673839913429,31.97,23.47,23.453,17.0]
[1673839913652,20.0,23.469,23.453,17.0]
[1673839914491,20.0,23.476,23.454,20.0]
[1673839914706,31.96,23.475,23.455,17.0]
[1673839915120,20.0,23.474,23.455,17.0]
[1673839915333,31.97,23.473,23.455,17.0]
[1673839915524,20.0,23.472,23.455,17.0]
[1673839915735,31.97,23.471,23.455,17.0]
[1673839915946,20.0,23.47,23.455,17.0]
[1673839916594,20.0,23.476,23.455,17.0]
[1673839916809,20.0,23.474,23.455,17.0]
[1673839916996,31.97,23.473,23.455,17.0]
[1673839917201,20.0,23.472,23.455,17.0]
[1673839917425,31.97,23.471,23.455,17.0]
[1673839917647,20.0,23.47,23.455,17.0]
[1673839918278,20.0,23.476,23.455,17.0]
[1673839918484,31.96,23.475,23.455,17.0]
[1673839918890,31.96,23.475,23.456,20.0]
[1673839919104,31.96,23.475,23.457,17.0]
[1673839919959,31.96,23.477,23.458,20.0]
[1673839920173,31.96,23.477,23.459,17.0]
[1673839920375,31.96,23.479,23.46,20.0]
[1673839920573,31.96,23.479,23.461,17.0]
[1673839920790,31.95,23.484,23.461,33.98]
[1673839921120,124.7561,23.49,23.461,33.98]
[1673839921121,31.94,23.489,23.475,0.1]
[1673839922700,20.0,23.488,23.475,0.1]
[1673839922897,31.95,23.487,23.475,0.1]
[1673839923114,31.94,23.489,23.475,0.1]
[1673839923834,40.0,23.488,23.475,0.1]
[1673839924046,31.95,23.487,23.475,0.1]
[1673839924384,20.0,23.486,23.475,0.1]
[1673839924689,31.95,23.485,23.475,0.1]
[1673839924907,20.0,23.484,23.475,0.1]
[1673839925110,31.95,23.483,23.475,0.1]
[1673839925313,20.0,23.482,23.475,0.1]
[1673839925736,20.0,23.488,23.475,0.1]
[1673839925938,31.95,23.487,23.475,0.1]
[1673839926270,20.0,23.486,23.475,0.1]
[1673839926493,31.95,23.485,23.475,0.1]
[1673839926675,20.0,23.484,23.475,0.1]
[1673839926886,31.95,23.483,23.475,0.1]
[1673839927095,20.0,23.482,23.475,0.1]
[1673839927305,20.0,23.484,23.475,0.1]
[1673839927306,31.94,23.489,23.475,0.1]
[1673839927520,49.49756488,23.5,23.475,0.1]
[1673839927521,46.55600681,23.482,23.475,0.1]
[1673839927725,31.93,23.498,23.475,0.1]
[1673839928367,31.93,23.499,23.475,0.1]
[1673839928569,31.93,23.499,23.477,20.0]
[1673839928995,31.93,23.499,23.478,17.0]
[1673839929332,31.93,23.499,23.479,20.0]
[1673839929522,20.0,23.498,23.479,20.0]
[1673839929850,20.0,23.496,23.475,0.1]
[1673839930052,51.94,23.495,23.475,0.1]
[1673839930376,98.49600681,23.495,23.475,0.1]
[1673839931303,37.0,23.494,23.475,0.1]
[1673839931519,51.94,23.493,23.475,0.1]
[1673839932265,51.84,23.493,23.475,0.1]
[1673839932475,31.94,23.493,23.475,0.1]
[1673839932796,49.49756488,23.5,23.475,0.1]
[1673839932797,31.94,23.494,23.475,20.1]
[1673839933000,46.55600681,23.498,23.476,17.0]
[1673839933212,31.93,23.497,23.476,17.0]
[1673839934244,20.0,23.496,23.476,17.0]
[1673839934567,31.94,23.495,23.476,17.0]
[1673839936361,31.94,23.495,23.477,20.0]
[1673839936570,31.94,23.495,23.478,17.0]
[1673839936907,31.94,23.495,23.479,20.0]
[1673839937084,20.0,23.496,23.48,17.0]
[1673839937609,20.0,23.496,23.481,20.0]
[1673839937819,20.0,23.496,23.482,17.0]
[1673839938247,20.0,23.502,23.482,17.0]
[1673839938459,31.93,23.501,23.482,17.0]
[1673839938671,20.0,23.5,23.483,20.0]
[1673839938874,20.0,23.5,23.484,17.0]
[1673839939740,20.0,23.502,23.485,20.0]
[1673839939947,20.0,23.502,23.486,17.0]
[1673839940260,31.93,23.501,23.486,17.0]
[1673839940580,20.0,23.5,23.486,17.0]
[1673839940975,51.93,23.503,23.486,17.0]
[1673839941617,51.93,23.503,23.485,20.0]
[1673839941821,98.48600681,23.503,23.485,20.0]
[1673839943201,98.48600681,23.503,23.486,17.0]
[1673839943394,98.48600681,23.503,23.485,20.0]
[1673839943606,17.0,23.502,23.485,20.0]
[1673839943817,51.93,23.501,23.485,20.0]
[1673839944025,98.48600681,23.501,23.485,20.0]
[1673839944445,98.48600681,23.501,23.486,17.0]
[1673839945205,51.93,23.501,23.486,17.0]
[1673839945619,51.93,23.501,23.483,20.0]
[1673839945825,17.0,23.5,23.482,20.0]
[1673839946148,51.93,23.499,23.482,20.0]
[1673839946465,98.48600681,23.499,23.482,20.0]
[1673839947821,51.93,23.499,23.482,20.0]
[1673839948648,51.93,23.499,23.478,223.0431]
[1673839948873,17.0,23.498,23.479,17.0]
[1673839949090,51.93,23.497,23.479,37.0]
[1673839951596,51.93,23.497,23.48,20.0]
[1673839951800,51.93,23.497,23.481,17.0]
[1673839952456,51.93,23.497,23.48,20.0]
[1673839952887,51.93,23.497,23.481,17.0]
[1673839955845,20.0,23.497,23.481,17.0]
[1673839956047,31.93,23.503,23.481,17.0]
[1673839956475,31.93,23.503,23.482,20.0]
[1673839956668,31.93,23.503,23.483,17.0]
[1673839957305,17.0,23.502,23.483,17.0]
[1673839957518,51.93,23.501,23.483,17.0]
[1673839958263,51.93,23.501,23.482,20.0]
[1673839958465,17.0,23.5,23.482,20.0]
[1673839958679,51.93,23.499,23.482,20.0]
[1673839959095,51.93,23.499,23.478,223.0431]
[1673839959434,17.0,23.498,23.478,223.0431]
[1673839959603,31.93,23.497,23.478,223.0431]
[1673839959816,20.0,23.496,23.478,223.0431]
[1673839960026,31.94,23.495,23.479,20.0]
[1673839960254,20.0,23.494,23.479,20.0]
[1673839960468,20.0,23.494,23.478,223.0431]
[1673839960469,31.94,23.493,23.478,223.0431]
[1673839960665,20.0,23.492,23.478,223.0431]
[1673839960874,20.0,23.492,23.48,20.0]
[1673839960875,31.94,23.491,23.48,20.0]
[1673839961099,20.0,23.49,23.48,20.0]
[1673839961300,31.94,23.489,23.48,20.0]
[1673839961830,20.0,23.488,23.48,20.0]
[1673839962052,31.93,23.499,23.48,20.0]
[1673839962765,31.93,23.499,23.481,17.0]
[1673839962968,31.93,23.499,23.482,20.0]
[1673839963405,31.93,23.503,23.483,17.0]
[1673839964248,20.0,23.502,23.483,17.0]
[1673839964475,31.93,23.501,23.483,17.0]
[1673839964668,20.0,23.5,23.483,17.0]
[1673839965312,20.0,23.502,23.483,17.0]
[1673839965531,31.93,23.501,23.483,17.0]
[1673839965739,20.0,23.5,23.482,20.0]
[1673839965952,31.93,23.499,23.482,20.0]
[1673839966158,20.0,23.498,23.482,20.0]
[1673839966896,31.93,23.497,23.482,20.0]
[1673839967109,21.46196354,23.5,23.483,17.0]
[1673839967308,51.93,23.499,23.483,17.0]
[1673839969609,20.0,23.499,23.483,17.0]
[1673839969821,20.0,23.502,23.483,17.0]
[1673839970046,31.93,23.501,23.474,20.0]
[1673839970361,20.0,23.499,23.474,20.0]
[1673839970545,31.93,23.498,23.474,20.0]
[1673839970757,37.0,23.497,23.474,20.0]
[1673839970967,31.94,23.496,23.475,0.1]
[1673839971203,37.0,23.495,23.475,0.1]
[1673839971421,51.94,23.494,23.475,0.1]
[1673839971602,37.0,23.493,23.475,0.1]
[1673839971928,31.94,23.492,23.475,0.1]
[1673839972147,20.0,23.491,23.475,0.1]
[1673839972462,31.94,23.49,23.475,0.1]
[1673839972668,20.0,23.489,23.475,0.1]
[1673839972867,31.95,23.488,23.475,0.1]
[1673839973406,20.0,23.487,23.475,0.1]
[1673839973808,20.0,23.498,23.475,17.1]
[1673839974133,17.0,23.497,23.475,17.1]
[1673839974348,51.94,23.496,23.475,17.1]
[1673839974539,31.94,23.496,23.476,20.0]
[1673839974750,20.0,23.495,23.477,17.0]
[1673839974971,31.94,23.494,23.479,20.0]
[1673839975179,20.0,23.493,23.48,17.0]
[1673839975807,20.0,23.498,23.48,17.0]
[1673839976017,31.93,23.497,23.48,17.0]
[1673839976227,20.0,23.496,23.48,17.0]
[1673839976456,31.94,23.495,23.48,17.0]
[1673839976644,37.0,23.494,23.476,20.0]
[1673839976854,31.94,23.493,23.476,20.0]
[1673839977062,17.0,23.492,23.476,20.0]
[1673839977272,51.94,23.491,23.476,20.0]
[1673839977910,20.0,23.491,23.476,20.0]
[1673839978118,20.0,23.498,23.476,20.0]
[1673839978332,48.93,23.497,23.476,20.0]
[1673839978544,20.0,23.496,23.476,20.0]
[1673839978871,48.94,23.495,23.477,17.0]
[1673839979078,20.0,23.494,23.477,17.0]
[1673839979479,31.94,23.493,23.477,17.0]
[1673839979695,20.0,23.492,23.477,17.0]
[1673839980219,20.0,23.492,23.476,20.0]
[1673839980430,20.0,23.493,23.476,20.0]
[1673839980640,20.0,23.493,23.473,16.73]
[1673839980958,17.0,23.492,23.471,154.492]
[1673839981178,20.0,23.491,23.471,154.492]
[1673839981389,20.0,23.491,23.471,137.752]
[1673839981923,31.94,23.49,23.475,17.1]
[1673839982127,20.0,23.489,23.475,17.1]
[1673839982636,20.0,23.49,23.475,17.1]
[1673839983174,20.0,23.49,23.475,0.1]
[1673839983383,48.94,23.489,23.475,0.1]
[1673839983794,20.0,23.488,23.475,0.1]
[1673839984005,48.95,23.487,23.475,0.1]
[1673839984216,20.0,23.485,23.475,0.1]
[1673839984440,20.0,23.483,23.475,0.1]
[1673839984647,68.95,23.482,23.475,0.1]
[1673839985471,68.95,23.482,23.46,20.0]
[1673839985717,16.57,23.48,23.46,20.0]
[1673839986014,68.96,23.479,23.46,20.0]
[1673839986839,68.96,23.479,23.454,20.0]
[1673839987474,51.96,23.479,23.454,20.0]
[1673839988206,51.96,23.479,23.455,17.0]
[1673839988746,51.96,23.479,23.454,20.0]
[1673839988950,20.0,23.477,23.454,20.0]
[1673839989165,48.96,23.476,23.454,20.0]
[1673839989369,68.96,23.476,23.454,20.0]
[1673839989604,51.96,23.476,23.454,20.0]
[1673839989813,20.0,23.475,23.454,20.0]
[1673839990035,31.97,23.474,23.454,20.0]
[1673839990246,20.0,23.473,23.454,20.0]
[1673839990439,31.97,23.472,23.454,20.0]
[1673839990854,20.0,23.471,23.454,20.0]
[1673839991084,31.97,23.47,23.454,20.0]
[1673839991394,20.0,23.469,23.454,20.0]
[1673839991592,31.97,23.468,23.454,20.0]
[1673839991799,20.0,23.467,23.453,20.0]
[1673839992330,31.98,23.466,23.453,20.0]
[1673839992542,31.96,23.475,23.453,20.0]
[1673839992762,37.0,23.474,23.453,20.0]
[1673839992974,31.97,23.473,23.453,20.0]
[1673839993183,20.0,23.472,23.454,17.0]
[1673839993400,31.97,23.471,23.454,17.0]
[1673839993719,20.0,23.47,23.454,17.0]
[1673839993908,31.97,23.469,23.454,17.0]
[1673839994116,20.0,23.468,23.453,20.0]
[1673839994344,31.97,23.467,23.453,20.0]
[1673839994548,20.0,23.466,23.453,20.0]
[1673839994747,20.0,23.466,23.454,17.0]
[1673839995174,20.0,23.472,23.454,17.0]
[1673839995369,31.97,23.471,23.454,17.0]
[1673839995798,20.0,23.47,23.454,17.0]
[1673839996020,31.97,23.469,23.452,232.5884]
[1673839996217,20.0,23.468,23.442,17.03]
[1673839996426,31.97,23.467,23.448,136.3249]
[1673839996651,20.0,23.466,23.448,136.3249]
[1673839997491,20.0,23.466,23.449,34.02]
[1673839997690,20.0,23.478,23.45,56.4]
[1673839997905,31.96,23.477,23.451,34.02]
[1673839998117,20.0,23.476,23.452,40.0]
[1673839998316,31.96,23.475,23.453,17.0]
[1673839998523,31.96,23.475,23.454,20.0]
[1673839998739,31.96,23.475,23.455,17.0]
[1673839999057,31.96,23.479,23.456,20.0]
[1673839999268,31.96,23.479,23.457,17.0]
[1673839999894,31.96,23.479,23.458,117.8073]
[1673840000120,20.0,23.478,23.459,17.0]
[1673840000323,31.96,23.477,23.459,17.0]
[1673840000763,16.57,23.47,23.458,117.8073]
[1673840000973,51.97,23.469,23.458,117.8073]
[1673840002664,51.87,23.469,23.458,117.8073]
[1673840003506,51.87,23.469,23.452,114.1923]
[1673840003819,17.0,23.468,23.452,114.1923]
[1673840004140,31.97,23.467,23.452,114.1923]
[1673840004342,37.0,23.466,23.452,114.1923]
[1673840004666,31.98,23.465,23.452,114.1923]
[1673840004847,31.98,23.465,23.454,20.0]
[1673840005061,20.0,23.466,23.455,17.0]
[1673840005271,20.0,23.468,23.454,20.0]
[1673840005587,31.97,23.467,23.452,114.1923]
[1673840005816,20.0,23.466,23.452,114.1923]
[1673840006029,31.98,23.465,23.452,114.1923]
[1673840006233,20.0,23.464,23.444,129.1196]
[1673840006444,16.57,23.46,23.444,112.1096]
[1673840006654,31.99,23.459,23.444,112.1096]
[1673840006847,51.99,23.459,23.444,112.1096]
[1673840007273,51.99,23.459,23.445,20.0]
[1673840007795,51.99,23.459,23.446,17.0]
[1673840008846,51.99,23.459,23.44,20.0]
[1673840010438,20.0,23.459,23.442,17.0]
[1673840010656,20.0,23.468,23.443,20.0]
[1673840010862,31.97,23.467,23.445,20.0]
[1673840011184,31.97,23.467,23.446,17.0]
[1673840011377,37.0,23.466,23.446,17.0]
[1673840011581,31.98,23.465,23.446,17.0]
[1673840011793,16.57,23.46,23.443,20.0]
[1673840012020,51.99,23.459,23.441,20.0]
[1673840013279,51.99,23.459,23.442,17.0]
[1673840017357,51.99,23.459,23.441,20.0]
[1673840018740,51.99,23.459,23.442,17.0]
[1673840025252,16.57,23.47,23.442,17.0]
[1673840025462,16.57,23.47,23.443,34.69833272]
[1673840025674,20.0,23.469,23.445,20.0]
[1673840025991,20.0,23.469,23.447,20.0]
[1673840026194,51.96,23.476,23.448,17.14]
[1673840026400,51.96,23.476,23.449,17.0]
[1673840026615,16.43,23.47,23.449,37.0]
[1673840026824,51.97,23.469,23.449,37.0]
[1673840028231,51.97,23.469,23.449,20.0]
[1673840028545,17.0,23.468,23.448,119.9498]
[1673840028731,71.97,23.467,23.448,119.9498]
[1673840028950,17.0,23.466,23.448,119.9498]
[1673840029282,31.98,23.465,23.448,119.9498]
[1673840029673,31.98,23.465,23.449,17.0]
[1673840030631,31.98,23.466,23.449,17.0]
[1673840032643,31.98,23.466,23.448,119.9498]
[1673840032839,57.0,23.465,23.448,119.9498]
[1673840033048,20.0,23.463,23.448,119.9498]
[1673840033265,51.98,23.462,23.448,119.9498]
[1673840036523,51.98,23.462,23.439,134.9649]
[1673840036524,16.53,23.46,23.439,114.9649]
[1673840036736,68.99,23.459,23.439,114.9649]
[1673840037044,20.0,23.458,23.439,114.9649]
[1673840037264,68.99,23.457,23.439,114.9649]
[1673840037875,68.99,23.457,23.435,118.6879]
[1673840039363,68.99,23.457,23.437,20.0]
[1673840040222,68.99,23.457,23.435,118.6879]
[1673840040425,16.38,23.45,23.429,20.0]
[1673840040640,69.0,23.449,23.429,20.0]
[1673840042210,69.0,23.449,23.426,111.6855]
[1673840042417,16.38,23.44,23.423,20.0]
[1673840042626,52.01,23.439,23.423,20.0]
[1673840043488,17.0,23.438,23.421,20.0]
[1673840043669,52.02,23.437,23.421,20.0]
[1673840043884,17.0,23.436,23.421,20.0]
[1673840044106,32.02,23.435,23.421,20.0]
[1673840044325,32.02,23.436,23.421,20.0]
[1673840044955,17.0,23.435,23.415,132.0337]
[1673840045174,32.02,23.434,23.416,17.0]
[1673840045361,17.0,23.433,23.416,17.0]
[1673840045570,32.02,23.432,23.416,17.0]
[1673840045804,16.4,23.43,23.416,17.0]
[1673840046008,52.03,23.429,23.416,17.0]
[1673840046224,52.03,23.429,23.415,112.0337]
[1673840047377,52.03,23.429,23.416,20.0]
[1673840050858,20.0,23.429,23.417,17.0]
[1673840051177,20.0,23.437,23.418,20.0]
[1673840051393,32.02,23.436,23.419,17.0]
[1673840051700,16.48,23.43,23.416,20.0]
[1673840051891,52.03,23.429,23.416,20.0]
[1673840052560,52.03,23.429,23.414,20.0]
[1673840052941,17.0,23.428,23.414,20.0]
[1673840053153,52.03,23.427,23.414,20.0]
[1673840054322,52.03,23.427,23.403,17.37]
[1673840054323,17.0,23.426,23.403,17.37]
[1673840054545,32.03,23.425,23.405,116.1014]
[1673840056332,16.48,23.42,23.405,116.1014]
[1673840056650,32.04,23.419,23.392,20.0]
[1673840056857,17.0,23.418,23.392,20.0]
[1673840057066,32.04,23.417,23.392,20.0]
[1673840057262,37.0,23.416,23.392,20.0]
[1673840057469,32.05,23.415,23.393,116.9186]
[1673840057792,17.0,23.414,23.393,116.9186]
[1673840058001,32.05,23.413,23.394,17.0]
[1673840058206,20.0,23.412,23.394,17.0]
[1673840058421,32.05,23.411,23.394,17.0]
[1673840058632,20.0,23.41,23.394,17.0]
[1673840058843,32.05,23.409,23.394,17.0]
[1673840059053,20.0,23.408,23.394,17.0]
[1673840059289,32.06,23.407,23.394,17.0]
[1673840059476,20.0,23.406,23.393,116.9186]
[1673840059917,32.06,23.405,23.393,116.9186]
[1673840060435,20.0,23.406,23.393,116.9186]
[1673840060436,20.0,23.406,23.394,20.0]
[1673840060636,20.0,23.419,23.394,20.0]
[1673840061065,32.04,23.418,23.395,17.0]
[1673840061278,16.38,23.41,23.396,20.0]
[1673840061487,52.05,23.409,23.396,20.0]
[1673840063047,52.05,23.409,23.397,17.0]
[1673840063695,20.0,23.409,23.397,17.0]
[1673840064309,20.0,23.418,23.398,20.0]
[1673840064520,32.04,23.417,23.4,20.0]
[1673840064731,20.0,23.416,23.4,20.0]
[1673840065084,16.4,23.44,23.41,16.36]
[1673840065256,16.4,23.44,23.412,20.0]
[1673840065465,16.4,23.44,23.413,17.0]
[1673840065687,32.01,23.439,23.413,17.0]
[1673840066427,32.01,23.439,23.414,20.0]
[1673840066742,20.0,23.438,23.415,17.0]
[1673840066935,32.02,23.437,23.415,17.0]
[1673840067366,16.38,23.43,23.412,20.0]
[1673840067588,52.03,23.429,23.411,109.4199]